[Event "*** SCC Grand Prix: Titled Tuesday Blitz"]
[Site "Chess.com"]
[Date "2020.06.23"]
[Round "4"]
[White "Andreikka"]
[Black "VMikhalevski"]
[Result "0-1"]
[WhiteElo "2934"]
[BlackElo "2793"]
[TimeControl "180+1"]
[EndTime "10:39:17 PDT"]
[Termination "VMikhalevski won on time"]

1. c4 {[%clk 0:02:59.6]} 1... Nf6 {[%clk 0:02:57.9]} 2. Nc3 {[%clk 0:02:57.8]}
2... d5 {[%clk 0:02:57.8]} 3. cxd5 {[%clk 0:02:56.9]} 3... Nxd5 {[%clk
0:02:57.7]} 4. Nf3 {[%clk 0:02:56.8]} 4... g6 {[%clk 0:02:57.2]} 5. e4 {[%clk
0:02:55.4]} 5... Nxc3 {[%clk 0:02:56.7]} 6. dxc3 {[%clk 0:02:55.9]} 6... Qxd1+
{[%clk 0:02:56.4]} 7. Kxd1 {[%clk 0:02:56.8]} 7... f6 {[%clk 0:02:55]} 8. h4
{[%clk 0:02:53.6]} 8... h5 {[%clk 0:02:54.4]} 9. Kc2 {[%clk 0:02:47]} 9... e5
{[%clk 0:02:53.4]} 10. Nd2 {[%clk 0:02:29.9]} 10... Bc5 {[%clk 0:02:46.8]} 11.
f3 {[%clk 0:02:26.1]} 11... a5 {[%clk 0:02:46.7]} 12. a4 {[%clk 0:02:25.4]}
12... Nd7 {[%clk 0:02:29.4]} 13. Nc4 {[%clk 0:02:12.2]} 13... b6 {[%clk
0:02:25.4]} 14. Bd3 {[%clk 0:02:06.7]} 14... Ke7 {[%clk 0:02:03.1]} 15. Ne3
{[%clk 0:02:00.4]} 15... c6 {[%clk 0:02:03]} 16. Bd2 {[%clk 0:01:53.5]} 16...
Nf8 {[%clk 0:01:51.9]} 17. Nc4 {[%clk 0:01:49]} 17... Ne6 {[%clk 0:01:50.2]} 18.
g3 {[%clk 0:01:49]} 18... Rd8 {[%clk 0:01:47.6]} 19. f4 {[%clk 0:01:47.2]} 19...
Ba6 {[%clk 0:01:42.2]} 20. b3 {[%clk 0:01:47.1]} 20... Bd6 {[%clk 0:01:36.3]}
21. Rhf1 {[%clk 0:01:40]} 21... exf4 {[%clk 0:01:31.4]} 22. gxf4 {[%clk
0:01:32.9]} 22... Nc5 {[%clk 0:01:31.2]} 23. e5 {[%clk 0:01:33.5]} 23... Bc7
{[%clk 0:01:23.9]} 24. Bxg6 {[%clk 0:01:31.9]} 24... Nxb3 {[%clk 0:01:17.5]} 25.
Kxb3 {[%clk 0:01:22.3]} 25... Bxc4+ {[%clk 0:01:17.5]} 26. Kxc4 {[%clk
0:01:23.2]} 26... Rxd2 {[%clk 0:01:17.3]} 27. Rae1 {[%clk 0:00:43.2]} 27... Rh2
{[%clk 0:01:11.4]} 28. exf6+ {[%clk 0:00:24.1]} 28... Kxf6 {[%clk 0:01:10.3]}
29. f5 {[%clk 0:00:25]} 29... Rxh4+ {[%clk 0:01:08.1]} 30. Kb3 {[%clk
0:00:25.9]} 30... Be5 {[%clk 0:01:02.5]} 31. Re3 {[%clk 0:00:22.2]} 31... Rd8
{[%clk 0:01:00.8]} 32. Rfe1 {[%clk 0:00:14.9]} 32... Rd5 {[%clk 0:01:00.4]} 33.
Be8 {[%clk 0:00:08.8]} 33... Rc5 {[%clk 0:01:00.1]} 34. Bd7 {[%clk 0:00:08.3]}
34... Rhc4 {[%clk 0:00:57.6]} 35. Rc1 {[%clk 0:00:06.4]} 35... h4 {[%clk
0:00:54]} 36. Be6 {[%clk 0:00:06.2]} 36... Rg4 {[%clk 0:00:52.5]} 37. Rd1 {[%clk
0:00:04.5]} 37... Rg3 {[%clk 0:00:51.6]} 38. Rxg3 {[%clk 0:00:03.6]} 38... hxg3
{[%clk 0:00:51.3]} 39. Rd7 {[%clk 0:00:04.5]} 39... g2 {[%clk 0:00:49.8]} 40.
Rd1 {[%clk 0:00:03.2]} 40... Bh2 {[%clk 0:00:48.7]} 41. Rd7 {[%clk 0:00:02.3]}
41... g1=Q {[%clk 0:00:47.7]} 42. Rf7+ {[%clk 0:00:03.2]} 42... Ke5 {[%clk
0:00:47.6]} 0-1

[Event "*** SCC Grand Prix: Titled Tuesday Blitz"]
[Site "Chess.com"]
[Date "2020.06.23"]
[Round "4"]
[White "GMMatamoros"]
[Black "rpragchess"]
[Result "0-1"]
[WhiteElo "2544"]
[BlackElo "2792"]
[TimeControl "180+1"]
[EndTime "10:39:21 PDT"]
[Termination "rpragchess won by resignation"]

1. c4 {[%clk 0:03:00.9]} 1... b6 {[%clk 0:02:57.3]} 2. Nf3 {[%clk 0:03:00.2]}
2... Bb7 {[%clk 0:02:58.2]} 3. g3 {[%clk 0:03:00.7]} 3... c5 {[%clk 0:02:58]} 4.
Bg2 {[%clk 0:03:00.7]} 4... g6 {[%clk 0:02:58.5]} 5. O-O {[%clk 0:03:00.6]} 5...
Bg7 {[%clk 0:02:59]} 6. Nc3 {[%clk 0:02:59.8]} 6... Nf6 {[%clk 0:02:48.9]} 7. d4
{[%clk 0:02:54.6]} 7... cxd4 {[%clk 0:02:48.6]} 8. Qxd4 {[%clk 0:02:55.5]} 8...
d6 {[%clk 0:02:45.4]} 9. Rd1 {[%clk 0:02:52.2]} 9... Nbd7 {[%clk 0:02:44.4]} 10.
Be3 {[%clk 0:02:51.9]} 10... O-O {[%clk 0:02:42]} 11. Qh4 {[%clk 0:02:50.1]}
11... Rc8 {[%clk 0:02:40.6]} 12. Rac1 {[%clk 0:02:48.8]} 12... a6 {[%clk
0:02:31.8]} 13. b3 {[%clk 0:02:48.6]} 13... Rc7 {[%clk 0:02:12.7]} 14. Bh3
{[%clk 0:02:44.3]} 14... Qa8 {[%clk 0:02:07.2]} 15. Bxd7 {[%clk 0:02:41.4]}
15... Bxf3 {[%clk 0:01:58.3]} 16. exf3 {[%clk 0:02:34.7]} 16... Rxd7 {[%clk
0:01:55.5]} 17. f4 {[%clk 0:01:37.9]} 17... b5 {[%clk 0:01:43.1]} 18. c5 {[%clk
0:01:32.8]} 18... Qf3 {[%clk 0:01:28]} 19. cxd6 {[%clk 0:01:03.7]} 19... Rxd6
{[%clk 0:01:18.1]} 20. Rxd6 {[%clk 0:01:01.5]} 20... exd6 {[%clk 0:01:19]} 21.
Qh3 {[%clk 0:01:01.6]} 21... b4 {[%clk 0:00:59.4]} 22. Na4 {[%clk 0:00:48.2]}
22... Qe2 {[%clk 0:00:52]} 23. Qf1 {[%clk 0:00:37.9]} 23... Qxa2 {[%clk
0:00:49.1]} 24. Qd3 {[%clk 0:00:37.8]} 24... Re8 {[%clk 0:00:26.1]} 25. h3
{[%clk 0:00:32.5]} 25... Ne4 {[%clk 0:00:20.9]} 26. Nb6 {[%clk 0:00:28.7]} 26...
Qb2 {[%clk 0:00:16.9]} 27. Nc4 {[%clk 0:00:26.4]} 27... Qf6 {[%clk 0:00:15.8]}
28. Rd1 {[%clk 0:00:22.6]} 28... Qe6 {[%clk 0:00:14.9]} 29. Bd4 {[%clk
0:00:21.6]} 29... Bxd4 {[%clk 0:00:13.9]} 30. Qxd4 {[%clk 0:00:21.8]} 30... Nc3
{[%clk 0:00:14.8]} 31. Rd2 {[%clk 0:00:12.4]} 31... Ne2+ {[%clk 0:00:14.3]} 32.
Rxe2 {[%clk 0:00:13]} 32... Qxe2 {[%clk 0:00:15.2]} 33. Nxd6 {[%clk 0:00:12.6]}
33... Rd8 {[%clk 0:00:14.3]} 34. Qd5 {[%clk 0:00:10.5]} 34... Qe6 {[%clk
0:00:12.6]} 0-1

[Event "*** SCC Grand Prix: Titled Tuesday Blitz"]
[Site "Chess.com"]
[Date "2020.06.23"]
[Round "4"]
[White "PattyCastillo"]
[Black "EnergeticHay"]
[Result "0-1"]
[WhiteElo "1909"]
[BlackElo "2204"]
[TimeControl "180+1"]
[EndTime "10:39:22 PDT"]
[Termination "EnergeticHay won by resignation"]

1. d4 {[%clk 0:03:00.9]} 1... Nf6 {[%clk 0:03:00]} 2. Nf3 {[%clk 0:02:58.3]}
2... g6 {[%clk 0:03:00.5]} 3. Nc3 {[%clk 0:02:52.5]} 3... d5 {[%clk 0:02:56.3]}
4. Bf4 {[%clk 0:02:51.3]} 4... Bg7 {[%clk 0:02:55.8]} 5. e3 {[%clk 0:02:51]}
5... O-O {[%clk 0:02:55.4]} 6. Be2 {[%clk 0:02:50.5]} 6... Nh5 {[%clk
0:02:50.4]} 7. Bg5 {[%clk 0:02:29.5]} 7... h6 {[%clk 0:02:44.6]} 8. Bh4 {[%clk
0:02:25.9]} 8... g5 {[%clk 0:02:43.6]} 9. Nxg5 {[%clk 0:02:13]} 9... hxg5 {[%clk
0:02:42.9]} 10. Bxh5 {[%clk 0:02:12.8]} 10... gxh4 {[%clk 0:02:42.4]} 11. Qf3
{[%clk 0:02:02.2]} 11... e6 {[%clk 0:02:23.3]} 12. O-O-O {[%clk 0:01:55.3]}
12... Qf6 {[%clk 0:02:22.8]} 13. Qe2 {[%clk 0:01:50]} 13... c5 {[%clk
0:02:09.2]} 14. g3 {[%clk 0:01:29.9]} 14... h3 {[%clk 0:02:05.5]} 15. g4 {[%clk
0:01:18.9]} 15... cxd4 {[%clk 0:02:00.5]} 16. exd4 {[%clk 0:01:19.8]} 16... Nc6
{[%clk 0:02:00.1]} 17. g5 {[%clk 0:01:04]} 17... Qf4+ {[%clk 0:01:49.7]} 18. Kb1
{[%clk 0:01:02.7]} 18... Nxd4 {[%clk 0:01:50.1]} 19. Qd3 {[%clk 0:00:49.6]}
19... Qxg5 {[%clk 0:01:40.7]} 20. Be2 {[%clk 0:00:31.2]} 20... Nxe2 {[%clk
0:01:39.4]} 21. Nxe2 {[%clk 0:00:29.2]} 21... Qf5 {[%clk 0:01:19]} 22. Qg3
{[%clk 0:00:22.5]} 22... Qe5 {[%clk 0:01:19.1]} 23. Rhg1 {[%clk 0:00:15.3]}
23... Qxg3 {[%clk 0:01:18.9]} 24. Rxg3 {[%clk 0:00:15]} 24... f5 {[%clk
0:00:53.4]} 25. Rdg1 {[%clk 0:00:13.9]} 25... Rf7 {[%clk 0:00:53.9]} 26. Rxh3
{[%clk 0:00:14]} 26... Bd7 {[%clk 0:00:41.6]} 27. Rhg3 {[%clk 0:00:13.7]} 27...
Kf8 {[%clk 0:00:41.4]} 28. Nf4 {[%clk 0:00:12.6]} 28... Rc8 {[%clk 0:00:31.6]}
29. Nh5 {[%clk 0:00:11.9]} 29... Be5 {[%clk 0:00:29]} 30. Rg8+ {[%clk 0:00:11]}
30... Ke7 {[%clk 0:00:29.6]} 31. Rxc8 {[%clk 0:00:09.8]} 31... Bxc8 {[%clk
0:00:30.5]} 32. c3 {[%clk 0:00:09.4]} 32... Rh7 {[%clk 0:00:29.4]} 33. Ng3
{[%clk 0:00:07]} 33... Rxh2 {[%clk 0:00:27.4]} 34. Re1 {[%clk 0:00:05.2]} 34...
Bxg3 {[%clk 0:00:24.2]} 35. fxg3 {[%clk 0:00:05]} 35... Rg2 {[%clk 0:00:24.9]}
36. Re3 {[%clk 0:00:04.5]} 36... Bd7 {[%clk 0:00:25.3]} 37. Kc1 {[%clk
0:00:03.6]} 37... Be8 {[%clk 0:00:22.4]} 38. a4 {[%clk 0:00:01.9]} 38... Bxa4
{[%clk 0:00:22]} 0-1

[Event "*** SCC Grand Prix: Titled Tuesday Blitz"]
[Site "Chess.com"]
[Date "2020.06.23"]
[Round "4"]
[White "ErikRonka"]
[Black "Harry_Rakkel"]
[Result "0-1"]
[WhiteElo "2396"]
[BlackElo "2569"]
[TimeControl "180+1"]
[EndTime "10:39:23 PDT"]
[Termination "Harry_Rakkel won on time"]

1. e4 {[%clk 0:03:00.9]} 1... c5 {[%clk 0:02:59.2]} 2. Nf3 {[%clk 0:03:00.6]}
2... e6 {[%clk 0:02:59.6]} 3. d4 {[%clk 0:02:58.1]} 3... cxd4 {[%clk 0:03:00]}
4. Nxd4 {[%clk 0:02:59]} 4... Nc6 {[%clk 0:02:59.7]} 5. Nc3 {[%clk 0:02:58.8]}
5... Qc7 {[%clk 0:02:56.1]} 6. Qd3 {[%clk 0:02:58.7]} 6... Nf6 {[%clk
0:02:54.4]} 7. Ndb5 {[%clk 0:02:50.5]} 7... Qb8 {[%clk 0:02:53.8]} 8. Qg3 {[%clk
0:02:49.6]} 8... d6 {[%clk 0:02:54.1]} 9. Be3 {[%clk 0:02:48.5]} 9... a6 {[%clk
0:02:54]} 10. Nd4 {[%clk 0:02:48.4]} 10... Bd7 {[%clk 0:02:53.7]} 11. Bd3 {[%clk
0:02:43.9]} 11... b5 {[%clk 0:02:50.6]} 12. O-O {[%clk 0:02:25.9]} 12... h5
{[%clk 0:02:26.2]} 13. f3 {[%clk 0:02:18.2]} 13... h4 {[%clk 0:02:21.5]} 14. Qf2
{[%clk 0:02:17.3]} 14... h3 {[%clk 0:02:18.1]} 15. g3 {[%clk 0:02:15.4]} 15...
Ne5 {[%clk 0:02:01.7]} 16. Nb3 {[%clk 0:01:50.9]} 16... Be7 {[%clk 0:01:44.8]}
17. a4 {[%clk 0:01:41.9]} 17... b4 {[%clk 0:01:42.1]} 18. Ne2 {[%clk 0:01:40.2]}
18... d5 {[%clk 0:01:37.1]} 19. Bc5 {[%clk 0:01:22]} 19... dxe4 {[%clk
0:01:25.7]} 20. Bxe4 {[%clk 0:01:02.2]} 20... Nxe4 {[%clk 0:01:20.7]} 21. fxe4
{[%clk 0:01:03.1]} 21... Bxc5 {[%clk 0:00:39]} 22. Nxc5 {[%clk 0:01:03.1]} 22...
Qa7 {[%clk 0:00:38.3]} 23. c3 {[%clk 0:00:23.4]} 23... bxc3 {[%clk 0:00:34]} 24.
Nxc3 {[%clk 0:00:23.3]} 24... Bc6 {[%clk 0:00:24.6]} 25. b4 {[%clk 0:00:20.5]}
25... O-O {[%clk 0:00:23]} 26. Qd4 {[%clk 0:00:12.6]} 26... Ng4 {[%clk
0:00:20.6]} 27. Rfd1 {[%clk 0:00:10.3]} 27... Rad8 {[%clk 0:00:18.8]} 28. Qxd8
{[%clk 0:00:09.9]} 28... Rxd8 {[%clk 0:00:18.8]} 29. Rxd8+ {[%clk 0:00:10.8]}
29... Kh7 {[%clk 0:00:19.1]} 30. Rad1 {[%clk 0:00:09.6]} 30... a5 {[%clk
0:00:18.5]} 31. Nb5 {[%clk 0:00:05.4]} 31... Bxb5 {[%clk 0:00:17.8]} 32. axb5
{[%clk 0:00:06.3]} 32... axb4 {[%clk 0:00:17.8]} 33. Rc8 {[%clk 0:00:06.9]}
33... Qa2 {[%clk 0:00:15.6]} 0-1

[Event "*** SCC Grand Prix: Titled Tuesday Blitz"]
[Site "Chess.com"]
[Date "2020.06.23"]
[Round "4"]
[White "Baby_Legs"]
[Black "MathiasWomacka"]
[Result "1/2-1/2"]
[WhiteElo "2617"]
[BlackElo "2422"]
[TimeControl "180+1"]
[EndTime "10:39:24 PDT"]
[Termination "Game drawn by repetition"]

1. d4 {[%clk 0:03:00.9]} 1... Nf6 {[%clk 0:02:59.5]} 2. c4 {[%clk 0:03:00.7]}
2... e6 {[%clk 0:02:59.9]} 3. Nc3 {[%clk 0:03:01]} 3... Bb4 {[%clk 0:02:59.9]}
4. Qc2 {[%clk 0:03:01.6]} 4... c5 {[%clk 0:02:58.8]} 5. dxc5 {[%clk 0:03:01.1]}
5... O-O {[%clk 0:02:58.7]} 6. g3 {[%clk 0:03:01.2]} 6... Na6 {[%clk 0:02:43.3]}
7. Bg2 {[%clk 0:03:00.9]} 7... Nxc5 {[%clk 0:02:43.3]} 8. Nh3 {[%clk 0:03:01.2]}
8... d5 {[%clk 0:02:38.2]} 9. cxd5 {[%clk 0:03:00.7]} 9... Nxd5 {[%clk
0:02:37.3]} 10. O-O {[%clk 0:02:56.3]} 10... Bxc3 {[%clk 0:02:29.3]} 11. bxc3
{[%clk 0:02:47.5]} 11... Bd7 {[%clk 0:02:28.8]} 12. Ng5 {[%clk 0:02:41.4]} 12...
Nf6 {[%clk 0:02:28.3]} 13. Rd1 {[%clk 0:02:15.7]} 13... h6 {[%clk 0:02:23.2]}
14. Nf3 {[%clk 0:02:14.1]} 14... Ba4 {[%clk 0:02:16.5]} 15. Rxd8 {[%clk
0:02:13.1]} 15... Bxc2 {[%clk 0:02:17.4]} 16. Rxa8 {[%clk 0:02:05.7]} 16... Rxa8
{[%clk 0:02:16.4]} 17. Ba3 {[%clk 0:02:03.9]} 17... Rc8 {[%clk 0:02:15.7]} 18.
Nd4 {[%clk 0:02:00.2]} 18... Be4 {[%clk 0:02:15.2]} 19. f3 {[%clk 0:01:58.8]}
19... Bd5 {[%clk 0:02:15.3]} 20. Nb5 {[%clk 0:01:55.6]} 20... a6 {[%clk
0:02:02]} 21. Nd6 {[%clk 0:01:51.3]} 21... Rc6 {[%clk 0:02:02]} 22. c4 {[%clk
0:01:09.4]} 22... Rxd6 {[%clk 0:01:57.3]} 23. Bxc5 {[%clk 0:01:07.2]} 23... Rc6
{[%clk 0:01:57.1]} 24. cxd5 {[%clk 0:01:07.6]} 24... Rxc5 {[%clk 0:01:57.3]} 25.
dxe6 {[%clk 0:01:08]} 25... fxe6 {[%clk 0:01:57.6]} 26. f4 {[%clk 0:01:07.6]}
26... b5 {[%clk 0:01:50.4]} 27. Rd1 {[%clk 0:01:06.6]} 27... Rc2 {[%clk
0:01:46.2]} 28. Rd6 {[%clk 0:01:02.5]} 28... Rxe2 {[%clk 0:01:39.7]} 29. Rxa6
{[%clk 0:01:00.8]} 29... Ng4 {[%clk 0:01:38.8]} 30. Bf3 {[%clk 0:00:56.5]} 30...
Re1+ {[%clk 0:01:35.4]} 31. Kg2 {[%clk 0:00:56.9]} 31... Nf6 {[%clk 0:01:33.1]}
32. Kf2 {[%clk 0:00:56.8]} 32... Rb1 {[%clk 0:01:29.1]} 33. Rxe6 {[%clk
0:00:55.7]} 33... Rb2+ {[%clk 0:01:28.8]} 34. Re2 {[%clk 0:00:55.9]} 34... Rb1
{[%clk 0:01:23.8]} 35. Rd2 {[%clk 0:00:54.9]} 35... Kf7 {[%clk 0:01:21.3]} 36.
Kg2 {[%clk 0:00:52.1]} 36... g5 {[%clk 0:01:15.2]} 37. fxg5 {[%clk 0:00:50.4]}
37... hxg5 {[%clk 0:01:16.1]} 38. Bd1 {[%clk 0:00:47.3]} 38... Ne4 {[%clk
0:01:10.6]} 39. Rd4 {[%clk 0:00:46.7]} 39... Rb2+ {[%clk 0:01:09.6]} 40. Kf3
{[%clk 0:00:40.1]} 40... Nc3 {[%clk 0:01:00.3]} 41. Bb3+ {[%clk 0:00:39.4]}
41... Kf6 {[%clk 0:00:57.1]} 42. Rd6+ {[%clk 0:00:39.4]} 42... Ke5 {[%clk
0:00:49.2]} 43. Re6+ {[%clk 0:00:39.5]} 43... Kd4 {[%clk 0:00:49.1]} 44. h3
{[%clk 0:00:32.2]} 44... Nxa2 {[%clk 0:00:48]} 45. Re4+ {[%clk 0:00:30.6]} 45...
Kd3 {[%clk 0:00:42.5]} 46. Re3+ {[%clk 0:00:27.9]} 46... Kd4 {[%clk 0:00:42.2]}
47. Re4+ {[%clk 0:00:26.5]} 47... Kd3 {[%clk 0:00:42.5]} 48. Re3+ {[%clk
0:00:20.4]} 48... Kd4 {[%clk 0:00:42.5]} 49. Re4+ {[%clk 0:00:18.7]} 1/2-1/2

[Event "*** SCC Grand Prix: Titled Tuesday Blitz"]
[Site "Chess.com"]
[Date "2020.06.23"]
[Round "4"]
[White "NotFischer"]
[Black "ajian"]
[Result "0-1"]
[WhiteElo "2201"]
[BlackElo "2406"]
[TimeControl "180+1"]
[EndTime "10:39:24 PDT"]
[Termination "ajian won by checkmate"]

1. e4 {[%clk 0:03:00.9]} 1... c5 {[%clk 0:03:00.2]} 2. Nf3 {[%clk 0:03:00.3]}
2... Nc6 {[%clk 0:03:00.5]} 3. d4 {[%clk 0:03:00.5]} 3... cxd4 {[%clk
0:03:01.4]} 4. Nxd4 {[%clk 0:03:00.9]} 4... Nf6 {[%clk 0:03:01.8]} 5. Nc3 {[%clk
0:03:01]} 5... e5 {[%clk 0:03:01.9]} 6. Ndb5 {[%clk 0:03:01.5]} 6... d6 {[%clk
0:03:02.2]} 7. Bg5 {[%clk 0:03:01.2]} 7... a6 {[%clk 0:03:02.6]} 8. Bxf6 {[%clk
0:03:01.4]} 8... gxf6 {[%clk 0:03:02.8]} 9. Na3 {[%clk 0:03:01.9]} 9... b5
{[%clk 0:03:03.5]} 10. Nd5 {[%clk 0:03:02.3]} 10... f5 {[%clk 0:03:04]} 11. c3
{[%clk 0:02:59.9]} 11... Bg7 {[%clk 0:03:04.2]} 12. exf5 {[%clk 0:02:59.6]}
12... Bxf5 {[%clk 0:03:05.1]} 13. Qf3 {[%clk 0:02:58.6]} 13... Be6 {[%clk
0:02:34]} 14. Bd3 {[%clk 0:02:57.3]} 14... O-O {[%clk 0:02:29.1]} 15. O-O {[%clk
0:02:57]} 15... f5 {[%clk 0:02:26.6]} 16. Nf4 {[%clk 0:02:56.6]} 16... exf4
{[%clk 0:01:31.1]} 17. Qxc6 {[%clk 0:02:55.1]} 17... Be5 {[%clk 0:01:30]} 18.
Rad1 {[%clk 0:02:38.1]} 18... Qf6 {[%clk 0:01:19.1]} 19. Nc2 {[%clk 0:02:25.2]}
19... Bxa2 {[%clk 0:01:11.9]} 20. Ra1 {[%clk 0:02:24.5]} 20... Be6 {[%clk
0:00:56.7]} 21. Rxa6 {[%clk 0:02:23.5]} 21... Rxa6 {[%clk 0:00:57.6]} 22. Qxa6
{[%clk 0:02:22.8]} 22... f3 {[%clk 0:00:57.9]} 23. g3 {[%clk 0:02:05.4]} 23...
f4 {[%clk 0:00:25]} 24. Qb7 {[%clk 0:01:58]} 24... Rf7 {[%clk 0:00:25]} 25. Qxf3
{[%clk 0:01:55.5]} 25... Qh6 {[%clk 0:00:14.9]} 26. Ra1 {[%clk 0:01:39.2]} 26...
fxg3 {[%clk 0:00:12.8]} 27. Ra8+ {[%clk 0:01:35.4]} 27... Kg7 {[%clk 0:00:13.1]}
28. Qg2 {[%clk 0:01:09.1]} 28... Rxf2 {[%clk 0:00:12.8]} 29. Ra7+ {[%clk
0:00:59]} 29... Bf7 {[%clk 0:00:10.2]} 30. Rxf7+ {[%clk 0:00:22]} 30... Kxf7
{[%clk 0:00:09.9]} 31. Qd5+ {[%clk 0:00:18.9]} 31... Kf6 {[%clk 0:00:07.7]} 32.
h4 {[%clk 0:00:04.2]} 32... Qxh4 {[%clk 0:00:07.1]} 33. Ne1 {[%clk 0:00:02.5]}
33... Qh2# {[%clk 0:00:06.7]} 0-1

[Event "*** SCC Grand Prix: Titled Tuesday Blitz"]
[Site "Chess.com"]
[Date "2020.06.23"]
[Round "4"]
[White "ChessNetwork"]
[Black "metalbattler"]
[Result "1-0"]
[WhiteElo "2634"]
[BlackElo "2054"]
[TimeControl "180+1"]
[EndTime "10:39:25 PDT"]
[Termination "ChessNetwork won by resignation"]

1. d4 {[%clk 0:03:00.9]} 1... d5 {[%clk 0:03:00]} 2. c4 {[%clk 0:02:56.1]} 2...
c6 {[%clk 0:03:00.3]} 3. Nf3 {[%clk 0:02:49.2]} 3... Nf6 {[%clk 0:03:00.7]} 4.
Nc3 {[%clk 0:02:46.3]} 4... e6 {[%clk 0:03:00.9]} 5. Bg5 {[%clk 0:02:45.2]} 5...
h6 {[%clk 0:03:00.6]} 6. Bh4 {[%clk 0:02:44.7]} 6... dxc4 {[%clk 0:02:58.9]} 7.
e4 {[%clk 0:02:44]} 7... g5 {[%clk 0:02:58.6]} 8. Bg3 {[%clk 0:02:40.8]} 8... b5
{[%clk 0:02:59.1]} 9. e5 {[%clk 0:02:35.2]} 9... Nd5 {[%clk 0:02:55.5]} 10. h4
{[%clk 0:02:35]} 10... Bb4 {[%clk 0:02:54.6]} 11. Qc2 {[%clk 0:02:25.1]} 11...
g4 {[%clk 0:02:51.5]} 12. Nd2 {[%clk 0:02:24.5]} 12... Qa5 {[%clk 0:02:37]} 13.
Rc1 {[%clk 0:02:20.8]} 13... Nd7 {[%clk 0:02:28.4]} 14. Nde4 {[%clk 0:02:17.5]}
14... Bb7 {[%clk 0:02:21]} 15. Be2 {[%clk 0:02:15.6]} 15... O-O-O {[%clk
0:02:13.4]} 16. O-O {[%clk 0:02:14]} 16... Be7 {[%clk 0:01:57.2]} 17. Rfd1
{[%clk 0:02:02.9]} 17... c5 {[%clk 0:01:43.8]} 18. dxc5 {[%clk 0:01:53.2]} 18...
Nxc5 {[%clk 0:01:44.7]} 19. Nxc5 {[%clk 0:01:53.1]} 19... Bxc5 {[%clk
0:01:45.6]} 20. Ne4 {[%clk 0:01:53.3]} 20... Be7 {[%clk 0:01:44]} 21. a4 {[%clk
0:01:47.5]} 21... a6 {[%clk 0:01:34]} 22. axb5 {[%clk 0:01:46.6]} 22... axb5
{[%clk 0:01:34.9]} 23. Nd6+ {[%clk 0:01:31.3]} 23... Bxd6 {[%clk 0:01:28.7]} 24.
exd6 {[%clk 0:01:32.2]} 24... f5 {[%clk 0:01:01.8]} 25. Be5 {[%clk 0:01:25]}
25... Rhg8 {[%clk 0:00:56.7]} 26. b3 {[%clk 0:01:24.6]} 26... c3 {[%clk
0:00:46.8]} 27. b4 {[%clk 0:00:49.7]} 27... Qxb4 {[%clk 0:00:33.3]} 28. Bxc3
{[%clk 0:00:29.3]} 28... Nxc3 {[%clk 0:00:31.2]} 29. Rd3 {[%clk 0:00:28.7]}
29... Kb8 {[%clk 0:00:19.7]} 30. Rxc3 {[%clk 0:00:25.6]} 30... Rc8 {[%clk
0:00:16.4]} 31. Rc7 {[%clk 0:00:22.5]} 31... Qe4 {[%clk 0:00:14.2]} 32. Qxe4
{[%clk 0:00:15.7]} 32... Bxe4 {[%clk 0:00:15.1]} 33. Bxb5 {[%clk 0:00:15.4]}
33... Rxc7 {[%clk 0:00:14.3]} 34. dxc7+ {[%clk 0:00:12.2]} 34... Kb7 {[%clk
0:00:12.5]} 35. Bd7 {[%clk 0:00:11.7]} 35... Rd8 {[%clk 0:00:07.9]} 36. cxd8=Q
{[%clk 0:00:10.8]} 1-0

[Event "*** SCC Grand Prix: Titled Tuesday Blitz"]
[Site "Chess.com"]
[Date "2020.06.23"]
[Round "4"]
[White "volcanoexplorer"]
[Black "Belka1989"]
[Result "1-0"]
[WhiteElo "2601"]
[BlackElo "2347"]
[TimeControl "180+1"]
[EndTime "10:39:26 PDT"]
[Termination "volcanoexplorer won by resignation"]

1. e4 {[%clk 0:03:00.9]} 1... c5 {[%clk 0:02:58.9]} 2. Nf3 {[%clk 0:03:00.9]}
2... d6 {[%clk 0:02:54.7]} 3. d4 {[%clk 0:03:01.1]} 3... cxd4 {[%clk 0:02:55.1]}
4. Nxd4 {[%clk 0:03:02]} 4... Nf6 {[%clk 0:02:50.7]} 5. Nc3 {[%clk 0:03:02]}
5... a6 {[%clk 0:02:37.1]} 6. h3 {[%clk 0:03:01.6]} 6... e5 {[%clk 0:02:34]} 7.
Nde2 {[%clk 0:03:01.4]} 7... h5 {[%clk 0:02:34.3]} 8. g3 {[%clk 0:03:01.7]} 8...
Be7 {[%clk 0:02:30.8]} 9. Bg2 {[%clk 0:03:02]} 9... Be6 {[%clk 0:02:30.6]} 10.
Be3 {[%clk 0:03:01.6]} 10... Nbd7 {[%clk 0:02:30.9]} 11. a4 {[%clk 0:03:01.7]}
11... Rc8 {[%clk 0:02:22.3]} 12. O-O {[%clk 0:03:01.1]} 12... O-O {[%clk
0:02:16]} 13. b3 {[%clk 0:03:00.3]} 13... h4 {[%clk 0:02:02.2]} 14. f4 {[%clk
0:02:46.6]} 14... exf4 {[%clk 0:01:18.8]} 15. gxf4 {[%clk 0:02:47.5]} 15... Nc5
{[%clk 0:01:14.8]} 16. f5 {[%clk 0:02:43.5]} 16... Bd7 {[%clk 0:01:14.4]} 17. b4
{[%clk 0:02:43.9]} 17... Ncxe4 {[%clk 0:01:07.8]} 18. Nxe4 {[%clk 0:02:44.8]}
18... Nxe4 {[%clk 0:01:08.1]} 19. Bxe4 {[%clk 0:02:45.7]} 19... Bf6 {[%clk
0:01:07.9]} 20. Ra3 {[%clk 0:02:28.4]} 20... Re8 {[%clk 0:01:07]} 21. Bxb7
{[%clk 0:02:18.1]} 21... Rb8 {[%clk 0:00:58.9]} 22. Bg2 {[%clk 0:02:14]} 22...
Rxb4 {[%clk 0:00:58.6]} 23. Qxd6 {[%clk 0:02:11.4]} 23... Rb2 {[%clk 0:00:49.2]}
24. Rd3 {[%clk 0:02:06.8]} 24... Rxc2 {[%clk 0:00:47.7]} 25. Qxd7 {[%clk
0:01:30.7]} 25... Qxd7 {[%clk 0:00:48.6]} 26. Rxd7 {[%clk 0:01:30]} 26... Rxe3
{[%clk 0:00:48.8]} 27. Nf4 {[%clk 0:01:21.4]} 27... Be5 {[%clk 0:00:44.5]} 28.
Nd3 {[%clk 0:01:02.4]} 28... Bf6 {[%clk 0:00:36.9]} 29. Rf2 {[%clk 0:00:58.4]}
29... Ree2 {[%clk 0:00:16.6]} 30. Rxe2 {[%clk 0:00:56.6]} 30... Rxe2 {[%clk
0:00:17.5]} 31. Bd5 {[%clk 0:00:55.2]} 31... Kh7 {[%clk 0:00:13.5]} 32. Bxf7
{[%clk 0:00:54.8]} 32... Kh6 {[%clk 0:00:13.7]} 33. Be6 {[%clk 0:00:37.1]} 33...
Kg5 {[%clk 0:00:13.3]} 34. Kf1 {[%clk 0:00:28.2]} 34... Rc2 {[%clk 0:00:11.3]}
35. Nf2 {[%clk 0:00:28.2]} 35... Kf4 {[%clk 0:00:09.9]} 36. Rd3 {[%clk
0:00:27.8]} 36... Rb2 {[%clk 0:00:07.1]} 37. Kg2 {[%clk 0:00:27.3]} 37... Rc2
{[%clk 0:00:05.2]} 38. Rf3+ {[%clk 0:00:27.2]} 38... Ke5 {[%clk 0:00:03.2]} 39.
Kf1 {[%clk 0:00:27.4]} 39... Rb2 {[%clk 0:00:02.6]} 40. Nd3+ {[%clk 0:00:26.3]}
1-0